[Event "EIWCC 2018"]
[Site "Vysoke Tatry"]
[Date "2018.04.11"]
[Round "4"]
[White "Makka, Ioulia"]
[Black "Nadzamova, Viktoria"]
[Result "1-0"]
[ECO "B40"]
[WhiteElo "2076"]
[BlackElo "1766"]
[Annotator "NA"]
[PlyCount "63"]
[EventDate "2018.??.??"]
[EventType "swiss"]
[EventCountry "SVK"]
[SourceTitle "playchess.com"]
[Source "ChessBase"]
[SourceQuality "1"]
[TimeControl "40/5400+30:1800+30"]

1. e4 {[%emt 0:00:00]} c5 {[%emt 0:00:06]} 2. Nf3 {[%emt 0:00:00]} e6 {[%emt 0:00:06]} 3. g3 {[%emt 0:02:12]} Nf6 {[%emt 0:02:50]} 4. Qe2 {[%emt 0:00:43]} Nc6 {[%emt 0:01:30]} 5. c3 {[%emt 0:00:20]} e5 {[%emt 0:01:19]} 6. Bg2 {[%emt 0:00:42]} a6 {[%emt 0:03:34]} 7. O-O {[%emt 0:03:54]} Be7 {[%emt 0:04:01]} 8. Rd1 {[%emt 0:04:03]} O-O {[%emt 0:03:16]} 9. d4 {[%emt 0:04:56]} cxd4 {[%emt 0:05:24]} 10. cxd4 {[%emt 0:00:36]} exd4 {[%emt 0:01:16]} ({Black should play} 10... d5 $1 $14) 11. e5 {[%emt 0:04:50]} Ne8 {[%emt 0:05:38]} 12. Nxd4 {[%emt 0:01:52]} Nxd4 {[%emt 0:01:56]} 13. Rxd4 {[%emt 0:00:04]} Bc5 {[%emt 0:12:36] [#]} 14. Rc4 {[%emt 0:09:58]} (14. Rd1 $1 $18 {has better winning chances.}) 14... d6 {[%emt 0:12:54]} 15. Nc3 $11 {[%emt 0:13:26]} Be6 {[%emt 0:05:48]} 16. Rh4 {[%emt 0:12:59]} dxe5 {[%emt 0:04:19]} 17. Qxe5 {[%emt 0:04:41]} Be7 {[%emt 0:04:36]} 18. Rd4 {[%emt 0:04:13]} Qc8 {[%emt 0:07:03]} 19. Nd5 {[%emt 0:05:17]} Bc5 {[%emt 0:03:33]} 20. Rh4 {[%emt 0:04:21]} Bxd5 {[%emt 0:06:31]} 21. Bxd5 {[%emt 0:09:02]} Nf6 {[%emt 0:01:24]} 22. Bf3 {[%emt 0:02:51]} Re8 {[%emt 0:01:55]} 23. Qc3 {[%emt 0:00:12]} Ra7 {[%emt 0:03:52]} 24. Rc4 {[%emt 0:01:14]} b6 {[%emt 0:01:38]} 25. b4 {[%emt 0:00:50]} Nd7 {[%emt 0:05:18]} 26. bxc5 {[%emt 0:02:06]} Ne5 {[%emt 0:00:30]} 27. Bb2 {[%emt 0:01:12]} f6 {[%emt 0:00:30]} 28. Bd5+ {[%emt 0:01:36]} Kh8 {[%emt 0:00:26]} 29. Rh4 {[%emt 0:00:43]} bxc5 {[%emt 0:00:34]} 30. Rc1 {[%emt 0:00:55]} Rc7 {[%emt 0:00:32]} 31. Qc2 {[%emt 0:01:18]} g6 {[%emt 0:00:29]} 32. f4 {[%emt 0:00:58]} 1-0

[Event "EIWCC 2018"]
[Site "Vysoke Tatry"]
[Date "2018.04.11"]
[Round "4"]
[White "Kejzar, Petra"]
[Black "Novosadova, Kristyna"]
[Result "0-1"]
[ECO "A00"]
[WhiteElo "2071"]
[BlackElo "2240"]
[Annotator "NA"]
[PlyCount "98"]
[EventDate "2018.??.??"]
[EventType "swiss"]
[EventCountry "SVK"]
[SourceTitle "playchess.com"]
[Source "ChessBase"]
[SourceQuality "1"]
[TimeControl "40/5400+30:1800+30"]

1. g3 {[%emt 0:00:00]} e5 {[%emt 0:00:18]} 2. Bg2 {[%emt 0:00:00]} Nf6 {[%emt 0:00:57]} 3. c4 {[%emt 0:00:00]} Nc6 {[%emt 0:06:46]} 4. Nc3 {[%emt 0:00:32]} Bb4 {[%emt 0:01:01]} 5. Nf3 {[%emt 0:04:06]} Bxc3 {[%emt 0:02:41]} 6. bxc3 {[%emt 0:07:01]} O-O {[%emt 0:01:52]} 7. O-O {[%emt 0:02:18] LiveBook: 182 Games} Re8 {[%emt 0:02:31]} 8. Qc2 {[%emt 0:04:06]} d6 {[%emt 0:05:17]} 9. e4 {[%emt 0:08:42] A29: English Opening: Four Knights Variation with 4 g3} Bg4 {[%emt 0:04:30]} (9... a6 10. Rb1 b5 11. cxb5 axb5 12. Re1 Be6 13. Rxb5 Rxa2 14. Rb2 Ra1 15. d3 d5 16. Ng5 d4 {1-0 (28) Van Wely,L (2658)-Van den Doel,E (2568) playchess.com INT 2016}) 10. h3 {[%emt 0:01:21]} Be6 {[%emt 0:06:15]} 11. d3 {[%emt 0:03:19]} Qc8 $146 {[%emt 0:01:10]} ({Predecessor:} 11... h6 12. Be3 Ne7 13. c5 Ng6 14. cxd6 cxd6 15. Rac1 d5 16. exd5 Nxd5 {½-½ (42) Lauchner,G-Huber,A Germany 1992}) 12. Kh2 {[%emt 0:00:23]} b6 {[%emt 0:00:54]} 13. Ng5 {[%emt 0:04:08]} Bd7 {[%emt 0:03:28]} 14. f4 {[%emt 0:00:48]} Na5 {[%emt 0:05:22]} 15. fxe5 {[%emt 0:02:13]} dxe5 {[%emt 0:00:41]} 16. d4 {[%emt 0:11:16]} (16. Nf3 $11) 16... Nxc4 {[%emt 0:11:03]} 17. Qb3 {[%emt 0:01:04]} Qa6 {[%emt 0:02:57]} 18. Nxf7 {[%emt 0:07:23]} Kxf7 $19 {[%emt 0:00:56]} 19. dxe5 {[%emt 0:00:31]} Ba4 {[%emt 0:12:46]} 20. Qb1 {[%emt 0:09:55]} Nxe5 {[%emt 0:00:36]} 21. Bg5 {[%emt 0:00:52]} Rad8 {[%emt 0:04:07]} 22. Qc1 {[%emt 0:00:52]} Ned7 {[%emt 0:04:43]} 23. Qf4 {[%emt 0:01:45]} Re5 {[%emt 0:09:15]} 24. Bxf6 {[%emt 0:04:46]} gxf6 {[%emt 0:00:02]} 25. Qh6 {[%emt 0:00:26]} Kg8 {[%emt 0:01:48]} 26. Rf4 {[%emt 0:00:53]} Rg5 {[%emt 0:02:29]} 27. Rxf6 {[%emt 0:01:00]} Rg7 {[%emt 0:01:26]} 28. Rf5 {[%emt 0:03:06]} Rg6 {[%emt 0:02:57]} 29. Qh4 {[%emt 0:01:20]} Re8 {[%emt 0:00:57]} 30. Raf1 {[%emt 0:01:40]} Qc4 {[%emt 0:00:59]} 31. R1f4 {[%emt 0:05:03]} Ne5 {[%emt 0:00:54]} 32. Qh5 {[%emt 0:03:39]} Qe6 {[%emt 0:00:28]} 33. Rh4 {[%emt 0:02:03]} Rg7 {[%emt 0:00:41]} 34. Rhf4 {[%emt 0:09:18]} Qg6 {[%emt 0:01:14]} 35. Qh4 {[%emt 0:00:39]} Bd7 {[%emt 0:00:40]} 36. Rf6 {[%emt 0:00:54]} Qg5 {[%emt 0:00:16]} 37. Qxg5 {[%emt 0:00:30]} Rxg5 {[%emt 0:00:01]} 38. Bf1 {[%emt 0:00:32]} Kg7 {[%emt 0:00:21]} 39. g4 {[%emt 0:00:31]} Bxg4 {[%emt 0:00:28]} 40. hxg4 {[%emt 0:00:00]} Nxg4+ {[%emt 0:00:13]} 41. Rxg4 {[%emt 0:00:56]} Kxf6 {[%emt 0:04:08]} 42. Rh4 {[%emt 0:00:28]} Ree5 {[%emt 0:02:57]} 43. Rxh7 {[%emt 0:00:49]} Rh5+ {[%emt 0:00:06]} 44. Rxh5 {[%emt 0:00:04]} Rxh5+ {[%emt 0:00:05]} 45. Kg3 {[%emt 0:00:07]} Ra5 {[%emt 0:00:17]} 46. Kf4 {[%emt 0:00:18]} Rxa2 {[%emt 0:00:15]} 47. e5+ {[%emt 0:00:30]} Ke7 {[%emt 0:00:06]} 48. Ke4 {[%emt 0:00:28]} a5 {[%emt 0:01:48]} 49. Kd5 {[%emt 0:01:19]} a4 {[%emt 0:00:18]} 0-1

[Event "EIWCC 2018"]
[Site "Vysoke Tatry"]
[Date "2018.04.11"]
[Round "4"]
[White "Ferkova, Dominika"]
[Black "Martynkova, Olena"]
[Result "0-1"]
[ECO "A81"]
[WhiteElo "2068"]
[BlackElo "2280"]
[Annotator "NA"]
[PlyCount "50"]
[EventDate "2018.??.??"]
[EventType "swiss"]
[EventCountry "SVK"]
[SourceTitle "playchess.com"]
[Source "ChessBase"]
[SourceQuality "1"]
[TimeControl "40/5400+30:1800+30"]

1. d4 {[%emt 0:00:00]} f5 {[%emt 0:00:37]} 2. g3 {[%emt 0:00:10]} Nf6 {[%emt 0:00:36]} 3. Nf3 {[%emt 0:01:01]} e6 {[%emt 0:00:55]} 4. Bg2 {[%emt 0:01:59]} d5 {[%emt 0:04:26]} 5. O-O {[%emt 0:02:32]} Bd6 {[%emt 0:01:54]} 6. Ne5 {[%emt 0:05:07]} O-O {[%emt 0:11:38]} 7. c4 {[%emt 0:06:34]} c6 {[%emt 0:02:35] LiveBook: 48 Games} 8. c5 {[%emt 0:12:24]} (8. b3 $11) 8... Bxe5 {[%emt 0:14:20]} 9. dxe5 {[%emt 0:01:03]} Nfd7 $1 {[%emt 0:00:16]} 10. Qd4 {[%emt 0:00:50]} b6 {[%emt 0:08:59]} 11. b4 {[%emt 0:04:25]} a5 {[%emt 0:08:59]} 12. a3 {[%emt 0:04:11]} bxc5 {[%emt 0:02:27]} 13. bxc5 {[%emt 0:00:08]} Na6 {[%emt 0:00:27]} 14. Be3 {[%emt 0:00:50]} Naxc5 {[%emt 0:06:49]} 15. Qc3 {[%emt 0:02:01]} Qe7 $15 {[%emt 0:03:36]} 16. Bd4 {[%emt 0:15:25]} Bb7 {[%emt 0:07:25]} 17. f3 {[%emt 0:02:07]} Na6 {[%emt 0:04:29]} 18. Qxa5 {[%emt 0:01:08]} c5 {[%emt 0:00:52]} 19. Bb2 {[%emt 0:00:39]} Nb4 {[%emt 0:02:51]} 20. Qc7 {[%emt 0:06:36]} Nc2 {[%emt 0:00:39]} 21. Qxb7 {[%emt 0:00:37]} Rab8 {[%emt 0:01:11]} 22. Qc7 {[%emt 0:03:05]} Rxb2 {[%emt 0:00:15]} 23. Nc3 {[%emt 0:00:05]} Nxa1 {[%emt 0:00:49]} 24. Rxa1 {[%emt 0:00:06]} Qd8 {[%emt 0:04:23]} 25. Qd6 {[%emt 0:01:07]} Rb6 {[%emt 0:00:46]} 0-1

[Event "EIWCC 2018"]
[Site "Vysoke Tatry"]
[Date "2018.04.11"]
[Round "4"]
[White "Palma, Maria"]
[Black "Serakova, Tatana"]
[Result "1-0"]
[ECO "A13"]
[WhiteElo "2060"]
[BlackElo "1633"]
[Annotator "NA RC"]
[PlyCount "103"]
[EventDate "2018.??.??"]
[EventType "swiss"]
[EventCountry "SVK"]
[SourceTitle "playchess.com"]
[Source "ChessBase"]
[SourceQuality "1"]
[TimeControl "40/5400+30:1800+30"]

1. c4 {[%emt 0:00:00]} e6 {[%emt 0:00:04]} 2. Nf3 {[%emt 0:00:00]} d5 {[%emt 0:00:14]} 3. b3 {[%emt 0:00:28]} Nf6 {[%emt 0:00:46]} 4. g3 {[%emt 0:00:13]} c5 {[%emt 0:03:29]} 5. Bg2 {[%emt 0:04:40]} b6 {[%emt 0:05:25] A13: English Opening: 1...e6} (5... Be7 6. O-O O-O 7. e3 Nc6 8. Bb2 b6 9. Nc3 dxc4 10. bxc4 Bb7 11. Qe2 Qc7 12. Rac1 Rfd8 13. Rfd1 Na5 14. Ne1 Bxg2 15. Nxg2 Qb7 16. f4 a6 17. Ba1 Ne4 18. Nxe4 Qxe4 19. d3 Qg6 {0-1 (47) Caruana,F (2807)-Aronian,L (2799) Saint Louis 2017}) 6. O-O {[%emt 0:01:45]} Bb7 {[%emt 0:00:14]} 7. cxd5 {[%emt 0:01:05]} Bxd5 {[%emt 0:06:48]} 8. Nc3 {[%emt 0:03:29]} Bc6 {[%emt 0:00:25]} 9. d4 $146 {[%emt 0:01:13]} ({Predecessor:} 9. Bb2 Be7 10. Rc1 O-O 11. d3 Bd6 12. Qd2 Nbd7 13. Rfd1 Qc7 14. d4 {1-0 (31) Schafer Lato,C (2000)-Hernandez Cruz,D (1596) Dos Hermanas 2004}) 9... cxd4 {[%emt 0:02:10]} 10. Qxd4 {[%emt 0:05:17]} Qxd4 {[%emt 0:01:47]} 11. Nxd4 {[%emt 0:00:06]} Bxg2 {[%emt 0:00:17]} 12. Kxg2 {[%emt 0:00:10]} Bc5 {[%emt 0:09:08]} 13. Ndb5 {[%emt 0:05:46]} Na6 {[%emt 0:01:26]} 14. Bf4 {[%emt 0:02:09]} O-O {[%emt 0:03:02]} 15. Rfd1 {[%emt 0:06:14]} Nb4 {[%emt 0:11:47]} 16. e4 {[%emt 0:09:43]} a6 {[%emt 0:04:59]} 17. Nd6 {[%emt 0:03:50]} Ng4 {[%emt 0:06:36]} 18. Rd2 {[%emt 0:12:23]} e5 {[%emt 0:03:24]} 19. f3 $1 {[%emt 0:03:30]} exf4 {[%emt 0:04:22]} 20. fxg4 {[%emt 0:01:58]} fxg3 {[%emt 0:00:19]} 21. Kxg3 {[%emt 0:03:23]} Rad8 {[%emt 0:02:08]} 22. Rad1 {[%emt 0:01:33]} Be3 {[%emt 0:02:23]} 23. Nd5 {[%emt 0:07:24]} Nxd5 24. Rxd5 {[%emt 0:01:17]} h6 {[%emt 0:13:57]} 25. b4 {[%emt 0:03:23]} b5 {[%emt 0:05:08]} 26. h4 {[%emt 0:01:31]} Ra8 {[%emt 0:00:59]} 27. Kf3 {[%emt 0:03:16]} Bb6 {[%emt 0:00:57]} 28. Rc1 {[%emt 0:01:12]} Bd8 {[%emt 0:02:11]} 29. g5 {[%emt 0:06:16]} hxg5 {[%emt 0:00:32]} 30. hxg5 {[%emt 0:00:07]} a5 {[%emt 0:01:25]} 31. a3 {[%emt 0:03:53]} axb4 {[%emt 0:00:59]} 32. axb4 {[%emt 0:00:05]} Ra3+ {[%emt 0:01:14]} 33. Kg4 {[%emt 0:00:14]} Re3 {[%emt 0:02:24]} 34. Rxb5 {[%emt 0:02:42]} Be7 {[%emt 0:02:25]} 35. e5 {[%emt 0:01:25]} Rd3 {[%emt 0:01:06]} 36. Nf5 {[%emt 0:01:25]} Bd8 {[%emt 0:00:49]} 37. Rb8 {[%emt 0:02:18]} Rb3 {[%emt 0:01:08]} 38. Rcc8 {[%emt 0:00:25]} Rd3 {[%emt 0:00:52]} 39. Nd6 {[%emt 0:00:57]} Be7 {[%emt 0:00:35]} 40. Rxf8+ {[%emt 0:00:00]} Bxf8 {[%emt 0:00:09]} 41. b5 $18 {[%emt 0:06:49]} Rd4+ {[%emt 0:06:40]} 42. Kf3 {[%emt 0:02:35]} g6 {[%emt 0:06:37]} 43. b6 {[%emt 0:01:25]} Kg7 {[%emt 0:03:37]} 44. b7 {[%emt 0:02:12]} Rb4 {[%emt 0:13:40]} 45. Ne8+ {[%emt 0:00:31]} Kg8 {[%emt 0:00:32]} 46. Nf6+ {[%emt 0:00:07]} Kg7 {[%emt 0:00:19]} 47. Rxf8 {[%emt 0:00:09]} Kxf8 {[%emt 0:00:55]} 48. b8=Q+ {[%emt 0:00:16]} Rxb8 {[%emt 0:00:22]} 49. Nd7+ {[%emt 0:00:06]} Ke7 {[%emt 0:00:20]} 50. Nxb8 {[%emt 0:00:07]} Ke6 {[%emt 0:00:37]} 51. Ke4 {[%emt 0:00:08] Kd5+} Ke7 {[%emt 0:01:21]} 52. Kd5 {[%emt 0:00:30]} 1-0

[Event "EIWCC 2018"]
[Site "Vysoke Tatry"]
[Date "2018.04.11"]
[Round "4"]
[White "Slaba, Andrea"]
[Black "Leite Oralova, Catarina"]
[Result "0-1"]
[ECO "E11"]
[WhiteElo "1924"]
[BlackElo "2134"]
[Annotator "NA"]
[PlyCount "60"]
[EventDate "2018.??.??"]
[EventType "swiss"]
[EventCountry "SVK"]
[SourceTitle "playchess.com"]
[Source "ChessBase"]
[SourceQuality "1"]
[TimeControl "40/5400+30:1800+30"]

1. d4 {[%emt 0:00:00]} Nf6 {[%emt 0:00:19]} 2. Nf3 {[%emt 0:00:00]} e6 {[%emt 0:00:56]} 3. c4 {[%emt 0:00:13]} Bb4+ {[%emt 0:01:28]} 4. Bd2 {[%emt 0:00:08]} Be7 {[%emt 0:01:15]} 5. Nc3 {[%emt 0:00:22]} d5 {[%emt 0:07:19]} 6. e3 {[%emt 0:02:23]} O-O {[%emt 0:01:27]} 7. Bd3 {[%emt 0:03:22]} Nbd7 {[%emt 0:04:22]} 8. O-O {[%emt 0:01:10]} c5 {[%emt 0:02:22]} 9. b3 {[%emt 0:05:02]} b6 {[%emt 0:07:35]} 10. cxd5 {[%emt 0:09:05]} exd5 {[%emt 0:01:57]} 11. Rc1 {[%emt 0:07:36]} Bb7 {[%emt 0:01:27]} 12. Qc2 {[%emt 0:05:35]} h6 {[%emt 0:07:01]} 13. Rfe1 {[%emt 0:07:25]} Rc8 {[%emt 0:08:38]} 14. Qb1 {[%emt 0:03:16]} Re8 {[%emt 0:07:16]} 15. Bf5 {[%emt 0:04:23]} Bd6 {[%emt 0:00:54]} 16. Nb5 {[%emt 0:02:52]} Bb8 $11 {[%emt 0:02:01]} 17. Nc3 {[%emt 0:05:32]} Ne4 {[%emt 0:08:32]} 18. Red1 {[%emt 0:02:42]} c4 {[%emt 0:11:12]} 19. bxc4 {[%emt 0:03:02]} Rxc4 {[%emt 0:00:28]} 20. Nxe4 {[%emt 0:03:47]} Rxc1 {[%emt 0:00:03]} 21. Rxc1 {[%emt 0:01:39]} dxe4 {[%emt 0:00:07]} 22. Ne1 {[%emt 0:01:01]} Nf6 {[%emt 0:02:58]} 23. g3 {[%emt 0:04:32]} Qd5 {[%emt 0:00:03]} 24. Bh3 {[%emt 0:00:15]} Qh5 {[%emt 0:01:29]} 25. Bg2 {[%emt 0:02:10]} Ng4 {[%emt 0:02:35]} 26. h3 {[%emt 0:00:41]} Nxf2 {[%emt 0:05:01]} 27. Kxf2 {[%emt 0:01:06]} Qg5 {[%emt 0:06:09]} 28. Ke2 {[%emt 0:08:17]} Bxg3 {[%emt 0:00:02]} 29. h4 {[%emt 0:05:30]} Qg4+ {[%emt 0:02:27]} 30. Kf1 {[%emt 0:00:43]} Ba6+ {[%emt 0:00:19]} 0-1

[Event "EIWCC 2018"]
[Site "Vysoke Tatry"]
[Date "2018.04.11"]
[Round "4"]
[White "Koubova, Anna Marie"]
[Black "Azimova, Karina"]
[Result "0-1"]
[ECO "B03"]
[WhiteElo "1819"]
[BlackElo "2069"]
[Annotator "NA"]
[PlyCount "74"]
[EventDate "2018.??.??"]
[EventType "swiss"]
[EventCountry "SVK"]
[SourceTitle "playchess.com"]
[Source "ChessBase"]
[SourceQuality "1"]
[TimeControl "40/5400+30:1800+30"]

1. e4 {[%emt 0:00:00]} Nf6 {[%emt 0:02:23]} 2. e5 {[%emt 0:00:00]} Nd5 {[%emt 0:00:02]} 3. d4 {[%emt 0:00:12]} d6 {[%emt 0:00:02]} 4. c4 {[%emt 0:00:19]} Nb6 {[%emt 0:00:02]} 5. exd6 {[%emt 0:00:16]} exd6 {[%emt 0:01:42]} 6. Nc3 {[%emt 0:00:37]} Be7 {[%emt 0:05:30]} 7. Bd3 {[%emt 0:00:34]} Nc6 {[%emt 0:00:46]} 8. Nge2 {[%emt 0:01:51]} Bg4 {[%emt 0:03:13]} 9. Be3 {[%emt 0:02:08] B03: Alekhine's Defence: Four Pawns Attack} (9. f3 Bh4+ 10. g3 Bxf3 11. O-O Bxe2 12. Qxe2+ Be7 13. Qe4 Qd7 14. Nd5 Nxd5 15. cxd5 Nb4 16. Bb1 Qb5 17. Bg5 {1-0 (31) Volokitin,A (2649)-Bortnyk,O (2581) Doha 2016}) 9... Bf6 {[%emt 0:05:07]} 10. Qd2 {[%emt 0:06:29]} Nb4 {[%emt 0:03:56]} 11. O-O {[%emt 0:06:07]} Nxd3 {[%emt 0:02:29]} 12. Qxd3 {[%emt 0:00:10]} O-O {[%emt 0:00:31]} 13. b3 {[%emt 0:04:02]} Re8 {[%emt 0:04:48]} (13... Bxe2 $5 14. Nxe2 (14. Qxe2 c6 $11) 14... c6 $11) 14. h3 $146 {[%emt 0:01:41]} ({Find the theoretical novelty and annotate with similar games:} 14. Ng3 Kh8 15. h3 Bd7 16. a4 {1-0 (56) Heinz,T (2129)-Vasseur,P (2164) Belfort 2004}) 14... Bh5 {[%emt 0:02:08]} (14... Bxe2 $5 15. Nxe2 c6 $11) 15. Nf4 {[%emt 0:02:35]} Bg6 {[%emt 0:00:09]} 16. Nxg6 {[%emt 0:00:42]} hxg6 {[%emt 0:00:02]} 17. Rfe1 {[%emt 0:05:33]} a6 {[%emt 0:08:42]} 18. Re2 {[%emt 0:03:39]} d5 {[%emt 0:06:21]} 19. Rb1 {[%emt 0:12:33]} Qd7 {[%emt 0:08:28]} 20. c5 {[%emt 0:05:14]} Nc8 {[%emt 0:00:14]} 21. b4 $11 {[%emt 0:00:59]} Ne7 {[%emt 0:02:07]} 22. a4 {[%emt 0:03:01]} Nf5 {[%emt 0:05:31]} 23. Reb2 {[%emt 0:07:53]} Re7 {[%emt 0:03:07]} 24. b5 {[%emt 0:03:48]} a5 {[%emt 0:04:25]} 25. Re2 {[%emt 0:07:42]} Rae8 {[%emt 0:02:21]} 26. Rbe1 {[%emt 0:00:38]} b6 {[%emt 0:01:37]} 27. Rd1 {[%emt 0:07:02]} Rd8 {[%emt 0:06:41]} 28. Red2 {[%emt 0:04:20]} Qe8 {[%emt 0:02:04]} 29. cxb6 {[%emt 0:02:59]} cxb6 {[%emt 0:00:40]} 30. Re2 {[%emt 0:00:43]} Qd7 {[%emt 0:00:31]} 31. Rde1 {[%emt 0:02:19]} Qd6 {[%emt 0:02:46]} 32. Nb1 {[%emt 0:04:45]} Qb4 {[%emt 0:03:32]} 33. Nc3 {[%emt 0:04:04]} Qd6 {[%emt 0:03:12]} 34. Nb1 {[%emt 0:00:21]} Rc7 {[%emt 0:00:44]} 35. Nd2 {[%emt 0:01:12]} Qb4 {[%emt 0:01:24]} 36. Bf4 {[%emt 0:00:55]} Rcc8 {[%emt 0:02:31]} 37. Qb3 {[%emt 0:00:33]} Nxd4 {[%emt 0:01:48]} 0-1